[Event "*** SCC Grand Prix: Titled Tuesday Blitz"]
[Site "Chess.com"]
[Date "2020.07.14"]
[Round "1"]
[White "talaicito"]
[Black "FontVella8"]
[Result "1/2-1/2"]
[WhiteElo "2174"]
[BlackElo "2506"]
[TimeControl "180+1"]
[EndTime "10:07:44 PDT"]
[Termination "Game drawn by repetition"]

1. d4 {[%clk 0:03:00.5]} 1... Nf6 {[%clk 0:02:58.4]} 2. Nc3 {[%clk 0:02:59.8]}
2... d5 {[%clk 0:02:57.8]} 3. Bf4 {[%clk 0:02:59]} 3... e6 {[%clk 0:02:57]} 4.
e3 {[%clk 0:02:59.5]} 4... a6 {[%clk 0:02:56.9]} 5. Nf3 {[%clk 0:02:59.9]} 5...
c5 {[%clk 0:02:57.2]} 6. Ne5 {[%clk 0:02:57.6]} 6... Nc6 {[%clk 0:02:56]} 7. g4
{[%clk 0:02:56.9]} 7... cxd4 {[%clk 0:02:50]} 8. exd4 {[%clk 0:02:56.2]} 8...
Qb6 {[%clk 0:02:50.3]} 9. g5 {[%clk 0:02:49.1]} 9... Nd7 {[%clk 0:02:32]} 10.
Nxc6 {[%clk 0:02:48.6]} 10... bxc6 {[%clk 0:02:32.9]} 11. Na4 {[%clk 0:02:33.9]}
11... Qa5+ {[%clk 0:02:25.8]} 12. c3 {[%clk 0:02:34]} 12... c5 {[%clk
0:02:22.3]} 13. dxc5 {[%clk 0:02:31.1]} 13... Nxc5 {[%clk 0:02:22.5]} 14. Nxc5
{[%clk 0:02:28.4]} 14... Bxc5 {[%clk 0:02:04.3]} 15. Be5 {[%clk 0:01:49.6]}
15... Qb6 {[%clk 0:01:56.8]} 16. Qd2 {[%clk 0:01:45.9]} 16... O-O {[%clk
0:01:52.2]} 17. Bd3 {[%clk 0:01:34.5]} 17... Bd6 {[%clk 0:01:42.8]} 18. Bxd6
{[%clk 0:01:02.2]} 18... Qxd6 {[%clk 0:01:43.7]} 19. O-O {[%clk 0:00:55.8]}
19... e5 {[%clk 0:01:25.7]} 20. Rad1 {[%clk 0:00:54.2]} 20... Be6 {[%clk
0:01:23.5]} 21. c4 {[%clk 0:00:42.4]} 21... d4 {[%clk 0:01:07.8]} 22. b3 {[%clk
0:00:42.1]} 22... f5 {[%clk 0:01:00.7]} 23. gxf6 {[%clk 0:00:35.7]} 23... Rxf6
{[%clk 0:01:00.9]} 24. f4 {[%clk 0:00:25.1]} 24... exf4 {[%clk 0:00:57.7]} 25.
Be4 {[%clk 0:00:24.1]} 25... Rd8 {[%clk 0:00:57.7]} 26. Qd3 {[%clk 0:00:23.7]}
26... h6 {[%clk 0:00:44.6]} 27. Rf3 {[%clk 0:00:19.8]} 27... Qe5 {[%clk
0:00:43]} 28. Rdf1 {[%clk 0:00:18.5]} 28... a5 {[%clk 0:00:39.8]} 29. Kh1 {[%clk
0:00:17.7]} 29... Bg4 {[%clk 0:00:35.3]} 30. Bh7+ {[%clk 0:00:15.8]} 30... Kh8
{[%clk 0:00:34.1]} 31. R3f2 {[%clk 0:00:16]} 31... f3 {[%clk 0:00:29.8]} 32. Be4
{[%clk 0:00:15.8]} 32... Re8 {[%clk 0:00:28.2]} 33. Bxf3 {[%clk 0:00:15.4]}
33... Qe3 {[%clk 0:00:18.6]} 34. Qd1 {[%clk 0:00:09.6]} 34... Rxf3 {[%clk
0:00:08.9]} 35. Rxf3 {[%clk 0:00:10.5]} 35... Qe4 {[%clk 0:00:09.6]} 36. Kg2
{[%clk 0:00:09.3]} 36... Rf8 {[%clk 0:00:07.9]} 37. Rf2 {[%clk 0:00:09.4]} 37...
Rxf3 {[%clk 0:00:03.7]} 38. Rxf3 {[%clk 0:00:09]} 38... d3 {[%clk 0:00:02.9]}
39. Kg3 {[%clk 0:00:09.1]} 39... Bxf3 {[%clk 0:00:03]} 40. Qxf3 {[%clk
0:00:09.1]} 40... Qe1+ {[%clk 0:00:03.6]} 41. Kg2 {[%clk 0:00:08.9]} 41... Qd2+
{[%clk 0:00:03.4]} 42. Kg3 {[%clk 0:00:08.5]} 42... Qg5+ {[%clk 0:00:03.7]} 43.
Kf2 {[%clk 0:00:08.5]} 43... d2 {[%clk 0:00:04.3]} 44. Ke2 {[%clk 0:00:08.6]}
44... h5 {[%clk 0:00:03]} 45. Kd1 {[%clk 0:00:08.5]} 45... g6 {[%clk 0:00:02.8]}
46. Qf8+ {[%clk 0:00:08]} 46... Kh7 {[%clk 0:00:03.3]} 47. Qf7+ {[%clk
0:00:08.6]} 47... Kh8 {[%clk 0:00:03.8]} 48. Qf8+ {[%clk 0:00:09]} 48... Kh7
{[%clk 0:00:04.3]} 49. Qf7+ {[%clk 0:00:09.5]} 49... Kh8 {[%clk 0:00:04.8]} 50.
Qf8+ {[%clk 0:00:09.8]} 1/2-1/2

[Event "*** SCC Grand Prix: Titled Tuesday Blitz"]
[Site "Chess.com"]
[Date "2020.07.14"]
[Round "1"]
[White "Artem_Sadovsky"]
[Black "allvim"]
[Result "0-1"]
[WhiteElo "2544"]
[BlackElo "2243"]
[TimeControl "180+1"]
[EndTime "10:07:46 PDT"]
[Termination "allvim won on time"]

1. Nf3 {[%clk 0:03:00.8]} 1... Nf6 {[%clk 0:02:58.4]} 2. c4 {[%clk 0:03:00.7]}
2... c5 {[%clk 0:02:57.2]} 3. b3 {[%clk 0:03:00.1]} 3... g6 {[%clk 0:02:52.2]}
4. Bb2 {[%clk 0:02:59.2]} 4... Bg7 {[%clk 0:02:52.7]} 5. g4 {[%clk 0:02:52.9]}
5... O-O {[%clk 0:02:50.9]} 6. g5 {[%clk 0:02:50.8]} 6... Nh5 {[%clk 0:02:47.3]}
7. Bxg7 {[%clk 0:02:51.7]} 7... Kxg7 {[%clk 0:02:42.1]} 8. Nc3 {[%clk
0:02:52.6]} 8... Nc6 {[%clk 0:02:40.6]} 9. e3 {[%clk 0:02:40.5]} 9... d6 {[%clk
0:02:37.3]} 10. Be2 {[%clk 0:02:34.3]} 10... Kg8 {[%clk 0:02:34.7]} 11. d4
{[%clk 0:02:30]} 11... cxd4 {[%clk 0:02:03.8]} 12. Nxd4 {[%clk 0:02:30.9]} 12...
Nxd4 {[%clk 0:01:57.3]} 13. Qxd4 {[%clk 0:02:31.8]} 13... Ng7 {[%clk 0:01:56.7]}
14. h4 {[%clk 0:02:26.9]} 14... Qa5 {[%clk 0:01:18]} 15. Qd2 {[%clk 0:02:00.7]}
15... Be6 {[%clk 0:01:14.8]} 16. Bf3 {[%clk 0:01:50.4]} 16... Rab8 {[%clk
0:01:11]} 17. Rd1 {[%clk 0:01:41.5]} 17... a6 {[%clk 0:01:05.9]} 18. Kf1 {[%clk
0:01:41.5]} 18... Rfe8 {[%clk 0:00:56.3]} 19. Ne4 {[%clk 0:01:33]} 19... Qxd2
{[%clk 0:00:55]} 20. Rxd2 {[%clk 0:01:33.9]} 20... Red8 {[%clk 0:00:53.3]} 21.
h5 {[%clk 0:01:24]} 21... gxh5 {[%clk 0:00:45.9]} 22. Ng3 {[%clk 0:01:19.7]}
22... b5 {[%clk 0:00:37.9]} 23. cxb5 {[%clk 0:01:14.1]} 23... axb5 {[%clk
0:00:38.8]} 24. Nxh5 {[%clk 0:01:09.4]} 24... Nxh5 {[%clk 0:00:39.1]} 25. Rxh5
{[%clk 0:01:10.1]} 25... Bf5 {[%clk 0:00:38.8]} 26. Rh4 {[%clk 0:00:46.9]} 26...
Rdc8 {[%clk 0:00:37.6]} 27. Rb4 {[%clk 0:00:43.2]} 27... Rc5 {[%clk 0:00:26.7]}
28. Bd5 {[%clk 0:00:35.4]} 28... Rbc8 {[%clk 0:00:18]} 29. f4 {[%clk 0:00:31.3]}
29... Rc2 {[%clk 0:00:17.5]} 30. Rbd4 {[%clk 0:00:17.8]} 30... Rxd2 {[%clk
0:00:17.1]} 31. Rxd2 {[%clk 0:00:18.7]} 31... Rc1+ {[%clk 0:00:16.8]} 32. Ke2
{[%clk 0:00:17.4]} 32... Bg4+ {[%clk 0:00:16.5]} 33. Kd3 {[%clk 0:00:17.3]}
33... Bd7 {[%clk 0:00:15.4]} 34. Rh2 {[%clk 0:00:12.2]} 34... b4 {[%clk
0:00:11.5]} 35. Be4 {[%clk 0:00:12.2]} 35... Bb5+ {[%clk 0:00:09.4]} 36. Kd2
{[%clk 0:00:12.5]} 36... Ra1 {[%clk 0:00:09]} 37. Rxh7 {[%clk 0:00:06.2]} 37...
Rxa2+ {[%clk 0:00:08.5]} 38. Kc1 {[%clk 0:00:06.9]} 38... Re2 {[%clk 0:00:07.4]}
39. Rh3 {[%clk 0:00:05.3]} 39... Rf2 {[%clk 0:00:04.8]} 40. Bh7+ {[%clk
0:00:04.3]} 40... Kg7 {[%clk 0:00:04.2]} 41. Bc2 {[%clk 0:00:05.2]} 41... Rf1+
{[%clk 0:00:04.2]} 42. Kb2 {[%clk 0:00:05.6]} 42... Rf2 {[%clk 0:00:05.1]} 43.
e4 {[%clk 0:00:01.8]} 43... Rxf4 {[%clk 0:00:04.1]} 0-1

[Event "*** SCC Grand Prix: Titled Tuesday Blitz"]
[Site "Chess.com"]
[Date "2020.07.14"]
[Round "1"]
[White "vova-79"]
[Black "biaf13"]
[Result "1-0"]
[WhiteElo "2462"]
[BlackElo "1958"]
[TimeControl "180+1"]
[EndTime "10:07:48 PDT"]
[Termination "vova-79 won on time"]

1. d4 {[%clk 0:02:56.6]} 1... Nf6 {[%clk 0:02:58.1]} 2. c4 {[%clk 0:02:55.2]}
2... g6 {[%clk 0:02:55.4]} 3. Nc3 {[%clk 0:02:54.6]} 3... d5 {[%clk 0:02:53.1]}
4. Nf3 {[%clk 0:02:54.2]} 4... Bg7 {[%clk 0:02:52.7]} 5. Bf4 {[%clk 0:02:53.9]}
5... O-O {[%clk 0:02:51.1]} 6. e3 {[%clk 0:02:53.7]} 6... c5 {[%clk 0:02:51.5]}
7. dxc5 {[%clk 0:02:53.4]} 7... Ne4 {[%clk 0:02:50.5]} 8. Be5 {[%clk 0:02:50.6]}
8... Nxc3 {[%clk 0:02:41.8]} 9. bxc3 {[%clk 0:02:45.4]} 9... Qa5 {[%clk
0:02:30.5]} 10. Qb3 {[%clk 0:02:40.2]} 10... dxc4 {[%clk 0:02:18.6]} 11. Bxc4
{[%clk 0:02:41.1]} 11... Nc6 {[%clk 0:02:17]} 12. Bxg7 {[%clk 0:02:37.4]} 12...
Kxg7 {[%clk 0:02:17.9]} 13. O-O {[%clk 0:02:37.2]} 13... Bg4 {[%clk 0:02:13.9]}
14. Qxb7 {[%clk 0:02:28.6]} 14... Bxf3 {[%clk 0:02:08]} 15. gxf3 {[%clk
0:02:29.5]} 15... Ne5 {[%clk 0:02:06.8]} 16. Be2 {[%clk 0:02:26.4]} 16... Qxc5
{[%clk 0:02:05.8]} 17. Rfc1 {[%clk 0:02:20.9]} 17... Rab8 {[%clk 0:02:02]} 18.
Qe4 {[%clk 0:02:20]} 18... Rb2 {[%clk 0:01:56.3]} 19. Rc2 {[%clk 0:02:11.6]}
19... Rfb8 {[%clk 0:01:39.6]} 20. f4 {[%clk 0:02:01.8]} 20... Rxc2 {[%clk
0:01:32.2]} 21. Qxc2 {[%clk 0:02:00.1]} 21... Nc4 {[%clk 0:01:32.2]} 22. Rb1
{[%clk 0:01:54.2]} 22... Rd8 {[%clk 0:01:27.8]} 23. Bxc4 {[%clk 0:01:45.5]}
23... Qxc4 {[%clk 0:01:26.9]} 24. Rb4 {[%clk 0:01:45.8]} 24... Qc8 {[%clk
0:01:17.4]} 25. f5 {[%clk 0:01:33]} 25... a5 {[%clk 0:01:07]} 26. Rf4 {[%clk
0:01:25.4]} 26... Rd5 {[%clk 0:01:01.3]} 27. c4 {[%clk 0:01:20.9]} 27... Rc5
{[%clk 0:00:47.1]} 28. fxg6 {[%clk 0:01:16.1]} 28... hxg6 {[%clk 0:00:46.9]} 29.
Qc3+ {[%clk 0:01:12.8]} 29... Kg8 {[%clk 0:00:45.7]} 30. h4 {[%clk 0:01:12.5]}
30... e5 {[%clk 0:00:33.3]} 31. Rf3 {[%clk 0:01:06.5]} 31... Rxc4 {[%clk
0:00:12.7]} 32. Qxe5 {[%clk 0:01:03.9]} 32... Qg4+ {[%clk 0:00:12]} 33. Rg3
{[%clk 0:01:00.4]} 33... Rc1+ {[%clk 0:00:11]} 34. Kg2 {[%clk 0:00:58.3]} 34...
Qe2 {[%clk 0:00:09.9]} 35. h5 {[%clk 0:00:46.5]} 35... Qf1+ {[%clk 0:00:09.5]}
36. Kf3 {[%clk 0:00:46.1]} 36... Qd1+ {[%clk 0:00:09.7]} 37. Kf4 {[%clk
0:00:44.6]} 37... Rc4+ {[%clk 0:00:09.1]} 38. e4 {[%clk 0:00:40.9]} 38... Qd2+
{[%clk 0:00:07.9]} 39. Kg4 {[%clk 0:00:39.7]} 39... gxh5+ {[%clk 0:00:05.4]} 40.
Kxh5+ {[%clk 0:00:31.1]} 40... Kf8 {[%clk 0:00:05.7]} 41. Qg7+ {[%clk
0:00:20.9]} 41... Ke7 {[%clk 0:00:05.5]} 42. Qg5+ {[%clk 0:00:20.1]} 42... Qxg5+
{[%clk 0:00:05.1]} 43. Rxg5 {[%clk 0:00:21]} 43... Rxe4 {[%clk 0:00:05.6]} 44.
Rxa5 {[%clk 0:00:21.1]} 44... Rf4 {[%clk 0:00:05]} 45. Re5+ {[%clk 0:00:18]}
45... Kf6 {[%clk 0:00:04.6]} 46. Re2 {[%clk 0:00:18.9]} 46... Rf3 {[%clk
0:00:02.7]} 47. Kg4 {[%clk 0:00:18]} 47... Ra3 {[%clk 0:00:02.1]} 48. f4 {[%clk
0:00:17.8]} 48... Kg7 {[%clk 0:00:01.6]} 49. Kf5 {[%clk 0:00:17.2]} 1-0

[Event "*** SCC Grand Prix: Titled Tuesday Blitz"]
[Site "Chess.com"]
[Date "2020.07.14"]
[Round "1"]
[White "realmadridtv"]
[Black "Grischuk"]
[Result "0-1"]
[WhiteElo "2451"]
[BlackElo "3053"]
[TimeControl "180+1"]
[EndTime "10:07:56 PDT"]
[Termination "Grischuk won by resignation"]

1. e4 {[%clk 0:03:00.4]} 1... c5 {[%clk 0:02:55.9]} 2. Nf3 {[%clk 0:03:00]} 2...
d6 {[%clk 0:02:56]} 3. Nc3 {[%clk 0:02:59.1]} 3... Nf6 {[%clk 0:02:55]} 4. e5
{[%clk 0:02:59.1]} 4... dxe5 {[%clk 0:02:55.1]} 5. Nxe5 {[%clk 0:03:00]} 5... a6
{[%clk 0:02:54]} 6. g3 {[%clk 0:02:51.3]} 6... Qd6 {[%clk 0:02:52.6]} 7. Nf3
{[%clk 0:02:50.1]} 7... Nc6 {[%clk 0:02:49]} 8. Bg2 {[%clk 0:02:49.1]} 8... Bg4
{[%clk 0:02:35.9]} 9. O-O {[%clk 0:02:45.8]} 9... e6 {[%clk 0:02:34.2]} 10. h3
{[%clk 0:02:44.5]} 10... Bh5 {[%clk 0:02:34.4]} 11. d3 {[%clk 0:02:42.7]} 11...
Qc7 {[%clk 0:02:22.9]} 12. Bf4 {[%clk 0:02:34.6]} 12... Bd6 {[%clk 0:02:22.7]}
13. Bxd6 {[%clk 0:02:34.3]} 13... Qxd6 {[%clk 0:02:23.6]} 14. Ne4 {[%clk
0:02:05.6]} 14... Qe7 {[%clk 0:02:22.8]} 15. Qe1 {[%clk 0:01:57.8]} 15... O-O
{[%clk 0:02:21]} 16. Qc3 {[%clk 0:01:50.2]} 16... Nd7 {[%clk 0:01:53.4]} 17. g4
{[%clk 0:01:38.2]} 17... Bg6 {[%clk 0:01:52.8]} 18. Ng3 {[%clk 0:01:38.5]} 18...
Rac8 {[%clk 0:01:47.5]} 19. Rfe1 {[%clk 0:01:31.5]} 19... Rfd8 {[%clk
0:01:45.3]} 20. a4 {[%clk 0:01:11.4]} 20... Nb6 {[%clk 0:01:36.2]} 21. Ne5
{[%clk 0:01:00.8]} 21... Nd4 {[%clk 0:01:10.4]} 22. f4 {[%clk 0:00:53.6]} 22...
Nd5 {[%clk 0:01:07.8]} 23. Qd2 {[%clk 0:00:53]} 23... f6 {[%clk 0:00:48.1]} 24.
Nxg6 {[%clk 0:00:44.8]} 24... hxg6 {[%clk 0:00:49]} 25. f5 {[%clk 0:00:41]}
25... gxf5 {[%clk 0:00:48.1]} 26. Nxf5 {[%clk 0:00:36.1]} 26... Qf7 {[%clk
0:00:45.3]} 27. Ng3 {[%clk 0:00:20.2]} 27... e5 {[%clk 0:00:42.8]} 28. Qf2
{[%clk 0:00:19.6]} 28... Nf4 {[%clk 0:00:42]} 29. Rad1 {[%clk 0:00:13.4]} 29...
b5 {[%clk 0:00:34.5]} 30. axb5 {[%clk 0:00:12.4]} 30... axb5 {[%clk 0:00:35.4]}
31. Bf1 {[%clk 0:00:12.8]} 31... b4 {[%clk 0:00:21.7]} 32. c3 {[%clk 0:00:12.6]}
32... Nde6 {[%clk 0:00:18.2]} 33. Kh2 {[%clk 0:00:10.4]} 33... Qg6 {[%clk
0:00:16.6]} 34. Nf5 {[%clk 0:00:09.3]} 34... Rc7 {[%clk 0:00:14.4]} 35. d4
{[%clk 0:00:08.5]} 35... cxd4 {[%clk 0:00:14]} 36. cxd4 {[%clk 0:00:08.5]} 36...
Qf7 {[%clk 0:00:10.9]} 37. dxe5 {[%clk 0:00:06.3]} 37... Rxd1 {[%clk 0:00:11.8]}
38. Rxd1 {[%clk 0:00:06.4]} 38... fxe5 {[%clk 0:00:12.4]} 39. Re1 {[%clk
0:00:05.5]} 39... Qf6 {[%clk 0:00:12.1]} 40. Bg2 {[%clk 0:00:05.7]} 40... g6
{[%clk 0:00:10.5]} 41. Ng3 {[%clk 0:00:05.3]} 41... b3 {[%clk 0:00:10.6]} 42.
Ne4 {[%clk 0:00:05.6]} 42... Qe7 {[%clk 0:00:11]} 43. Rd1 {[%clk 0:00:05.9]}
43... Rc2 {[%clk 0:00:10.6]} 44. Rd2 {[%clk 0:00:05.6]} 44... Nd4 {[%clk
0:00:10.9]} 45. Rxc2 {[%clk 0:00:05.4]} 45... bxc2 {[%clk 0:00:11.8]} 46. Qd2
{[%clk 0:00:05.6]} 46... Nfe2 {[%clk 0:00:10.9]} 47. Ng5 {[%clk 0:00:04.2]}
47... c1=Q {[%clk 0:00:10]} 48. Bd5+ {[%clk 0:00:04.9]} 48... Kg7 {[%clk
0:00:10]} 49. Ne6+ {[%clk 0:00:04]} 49... Nxe6 {[%clk 0:00:08.3]} 50. Qxc1
{[%clk 0:00:03.5]} 50... Nxc1 {[%clk 0:00:08]} 0-1

[Event "*** SCC Grand Prix: Titled Tuesday Blitz"]
[Site "Chess.com"]
[Date "2020.07.14"]
[Round "1"]
[White "natelleka"]
[Black "PotapovaM"]
[Result "0-1"]
[WhiteElo "2100"]
[BlackElo "2486"]
[TimeControl "180+1"]
[EndTime "10:07:58 PDT"]
[Termination "PotapovaM won by checkmate"]

1. e4 {[%clk 0:03:00.7]} 1... c5 {[%clk 0:02:57.1]} 2. Nf3 {[%clk 0:03:00.7]}
2... d6 {[%clk 0:02:57.6]} 3. d4 {[%clk 0:03:00.8]} 3... cxd4 {[%clk 0:02:58.5]}
4. Nxd4 {[%clk 0:03:01.3]} 4... Nf6 {[%clk 0:02:55.9]} 5. Nc3 {[%clk 0:03:01.3]}
5... a6 {[%clk 0:02:56.6]} 6. a4 {[%clk 0:03:01.3]} 6... e5 {[%clk 0:02:54.8]}
7. Nf3 {[%clk 0:03:00.9]} 7... Qc7 {[%clk 0:02:43.2]} 8. Be2 {[%clk 0:02:07.7]}
8... Be7 {[%clk 0:02:42.5]} 9. O-O {[%clk 0:02:03]} 9... h6 {[%clk 0:02:39.7]}
10. Re1 {[%clk 0:02:02.7]} 10... O-O {[%clk 0:02:39.2]} 11. Bf1 {[%clk
0:01:57.5]} 11... Be6 {[%clk 0:02:36.7]} 12. Nd5 {[%clk 0:01:50.6]} 12... Nxd5
{[%clk 0:02:35.6]} 13. exd5 {[%clk 0:01:50.4]} 13... Bg4 {[%clk 0:02:36.3]} 14.
Ra3 {[%clk 0:01:39.7]} 14... Nd7 {[%clk 0:02:34.7]} 15. h3 {[%clk 0:01:34.8]}
15... Bh5 {[%clk 0:02:34.3]} 16. Rc3 {[%clk 0:01:26.9]} 16... Qd8 {[%clk
0:02:34]} 17. Be3 {[%clk 0:01:24.2]} 17... e4 {[%clk 0:02:21.5]} 18. g4 {[%clk
0:01:23.4]} 18... exf3 {[%clk 0:02:10.7]} 19. gxh5 {[%clk 0:01:22.5]} 19... Bf6
{[%clk 0:02:10.1]} 20. Bd4 {[%clk 0:01:19.5]} 20... Bxd4 {[%clk 0:02:07.7]} 21.
Qxd4 {[%clk 0:01:19.5]} 21... Ne5 {[%clk 0:02:08.4]} 22. Rxe5 {[%clk 0:00:52.4]}
22... dxe5 {[%clk 0:02:07.9]} 23. Qxe5 {[%clk 0:00:52.9]} 23... Qh4 {[%clk
0:02:08.4]} 24. Rxf3 {[%clk 0:00:48.9]} 24... Rae8 {[%clk 0:02:02.3]} 25. Qf4
{[%clk 0:00:42]} 25... Qxh5 {[%clk 0:02:00.6]} 26. c4 {[%clk 0:00:37.1]} 26...
Re1 {[%clk 0:01:56.7]} 27. Kg2 {[%clk 0:00:32.8]} 27... Qg6+ {[%clk 0:01:49]}
28. Rg3 {[%clk 0:00:25.3]} 28... Qh5 {[%clk 0:01:33.8]} 29. Bd3 {[%clk
0:00:21.6]} 29... Qd1 {[%clk 0:01:07]} 30. Qg4 {[%clk 0:00:12.1]} 30... Qxg4
{[%clk 0:00:32]} 31. hxg4 {[%clk 0:00:11]} 31... Rd8 {[%clk 0:00:29.7]} 32. Re3
{[%clk 0:00:09.6]} 32... Rd1 {[%clk 0:00:26.4]} 33. Kf3 {[%clk 0:00:08.8]} 33...
Kf8 {[%clk 0:00:26.5]} 34. Kf4 {[%clk 0:00:08.8]} 34... g6 {[%clk 0:00:25.5]}
35. Re2 {[%clk 0:00:08.2]} 35... Rxd3 {[%clk 0:00:24.9]} 36. Ke5 {[%clk
0:00:08.6]} 36... Ke7 {[%clk 0:00:23.3]} 37. Rc2 {[%clk 0:00:08.3]} 37... f6+
{[%clk 0:00:21.5]} 38. Ke4 {[%clk 0:00:08.6]} 38... Rd1 {[%clk 0:00:21.1]} 39.
Ke3 {[%clk 0:00:08.5]} 39... b6 {[%clk 0:00:19.6]} 40. Ke4 {[%clk 0:00:08.5]}
40... Kd6 {[%clk 0:00:19.5]} 41. Ke3 {[%clk 0:00:08.5]} 41... Re8+ {[%clk
0:00:19.7]} 42. Kf3 {[%clk 0:00:06.9]} 42... Rd3+ {[%clk 0:00:20.3]} 43. Kg2
{[%clk 0:00:06.8]} 43... f5 {[%clk 0:00:20.6]} 44. gxf5 {[%clk 0:00:06.7]} 44...
gxf5 {[%clk 0:00:21.5]} 45. b4 {[%clk 0:00:07]} 45... f4 {[%clk 0:00:21.2]} 46.
c5+ {[%clk 0:00:06.4]} 46... bxc5 {[%clk 0:00:22.1]} 47. bxc5+ {[%clk 0:00:07]}
47... Kxd5 {[%clk 0:00:22.2]} 48. c6 {[%clk 0:00:07.6]} 48... Rc8 {[%clk
0:00:22.2]} 49. c7 {[%clk 0:00:08.1]} 49... Kd6 {[%clk 0:00:22.7]} 50. Kf1
{[%clk 0:00:07.5]} 50... Rxc7 {[%clk 0:00:23.1]} 51. Rb2 {[%clk 0:00:08.2]}
51... f3 {[%clk 0:00:21.8]} 52. Ke1 {[%clk 0:00:08.1]} 52... Rc1# {[%clk
0:00:21.1]} 0-1

[Event "*** SCC Grand Prix: Titled Tuesday Blitz"]
[Site "Chess.com"]
[Date "2020.07.14"]
[Round "1"]
[White "supertfc"]
[Black "David_Paravyan"]
[Result "0-1"]
[WhiteElo "2438"]
[BlackElo "2942"]
[TimeControl "180+1"]
[EndTime "10:07:59 PDT"]
[Termination "David_Paravyan won on time"]

1. e4 {[%clk 0:03:00.8]} 1... e5 {[%clk 0:02:58.3]} 2. Nf3 {[%clk 0:03:00.6]}
2... Nc6 {[%clk 0:02:58.7]} 3. Bc4 {[%clk 0:03:00.8]} 3... d6 {[%clk 0:02:58.3]}
4. d4 {[%clk 0:02:55.2]} 4... Bg4 {[%clk 0:02:54.5]} 5. dxe5 {[%clk 0:02:45.6]}
5... Nxe5 {[%clk 0:02:38.3]} 6. Be2 {[%clk 0:02:44.5]} 6... Nxf3+ {[%clk
0:02:26.3]} 7. Bxf3 {[%clk 0:02:43.7]} 7... Bxf3 {[%clk 0:02:20.9]} 8. Qxf3
{[%clk 0:02:44.6]} 8... Qf6 {[%clk 0:01:57.3]} 9. Qe2 {[%clk 0:02:43.8]} 9...
Qe6 {[%clk 0:01:33.8]} 10. Nc3 {[%clk 0:02:39.2]} 10... c6 {[%clk 0:01:27.6]}
11. Bf4 {[%clk 0:02:33.4]} 11... Nf6 {[%clk 0:01:27.5]} 12. O-O-O {[%clk
0:02:31.3]} 12... Be7 {[%clk 0:01:27.8]} 13. Rhe1 {[%clk 0:02:19.4]} 13... Nd7
{[%clk 0:01:25]} 14. Bg3 {[%clk 0:02:09]} 14... b5 {[%clk 0:01:10.6]} 15. Qd3
{[%clk 0:00:58.2]} 15... Nc5 {[%clk 0:00:55.4]} 16. Qd4 {[%clk 0:00:56.1]} 16...
O-O {[%clk 0:00:15.3]} 17. Bxd6 {[%clk 0:00:53.4]} 17... Bxd6 {[%clk 0:00:12.8]}
18. Qxd6 {[%clk 0:00:54.3]} 18... b4 {[%clk 0:00:13.4]} 19. Qxe6 {[%clk
0:00:53.4]} 19... fxe6 {[%clk 0:00:12.6]} 20. Nb1 {[%clk 0:00:47.6]} 20... Rxf2
{[%clk 0:00:13]} 21. Rd2 {[%clk 0:00:46.4]} 21... Raf8 {[%clk 0:00:13]} 22. g3
{[%clk 0:00:28]} 22... a5 {[%clk 0:00:11.2]} 23. c3 {[%clk 0:00:18.6]} 23... h6
{[%clk 0:00:06.9]} 24. Kc2 {[%clk 0:00:17]} 24... Rxd2+ {[%clk 0:00:05.1]} 25.
Kxd2 {[%clk 0:00:11.7]} 25... Rf2+ {[%clk 0:00:06]} 26. Re2 {[%clk 0:00:11.6]}
26... Nxe4+ {[%clk 0:00:05.4]} 27. Ke3 {[%clk 0:00:11.7]} 27... Rxe2+ {[%clk
0:00:05.8]} 28. Kxe2 {[%clk 0:00:12.2]} 28... bxc3 {[%clk 0:00:05.7]} 29. bxc3
{[%clk 0:00:09.1]} 29... Kf7 {[%clk 0:00:06.2]} 30. Kd3 {[%clk 0:00:09.3]} 30...
Nd6 {[%clk 0:00:06.5]} 31. Kd4 {[%clk 0:00:08]} 31... Ke7 {[%clk 0:00:04.6]} 32.
Kc5 {[%clk 0:00:07.2]} 32... Kd7 {[%clk 0:00:05.1]} 33. Na3 {[%clk 0:00:04.2]}
33... Kc7 {[%clk 0:00:04.8]} 34. Kd4 {[%clk 0:00:02.7]} 34... Nb5+ {[%clk
0:00:04.2]} 35. Nxb5+ {[%clk 0:00:02.1]} 35... cxb5 {[%clk 0:00:05.1]} 36. Kc5
{[%clk 0:00:01.9]} 36... e5 {[%clk 0:00:04.1]} 37. Kxb5 {[%clk 0:00:01.9]} 37...
Kd6 {[%clk 0:00:04.8]} 38. c4 {[%clk 0:00:01.5]} 38... e4 {[%clk 0:00:04.6]} 39.
c5+ {[%clk 0:00:01.9]} 39... Kc7 {[%clk 0:00:03.9]} 40. Kc4 {[%clk 0:00:02.2]}
40... Kc6 {[%clk 0:00:03.8]} 41. Kd4 {[%clk 0:00:02.5]} 41... a4 {[%clk
0:00:02.5]} 42. Kxe4 {[%clk 0:00:02.3]} 42... Kxc5 {[%clk 0:00:03.4]} 43. Kd3
{[%clk 0:00:01.9]} 43... Kb4 {[%clk 0:00:03.9]} 44. Kc2 {[%clk 0:00:01.6]} 44...
Ka3 {[%clk 0:00:04.6]} 45. Kb1 {[%clk 0:00:02]} 45... h5 {[%clk 0:00:02.7]} 46.
h4 {[%clk 0:00:02.2]} 46... g6 {[%clk 0:00:02.3]} 47. Ka1 {[%clk 0:00:02.1]}
47... Kb4 {[%clk 0:00:03.1]} 48. Kb2 {[%clk 0:00:02.9]} 48... a3+ {[%clk
0:00:03.5]} 49. Kc2 {[%clk 0:00:02.9]} 49... Kc4 {[%clk 0:00:04.3]} 0-1